Cogmind - Beta 16.1 @@@ ROGUE MODE // 2026.04.16 @ 20:21:25 Player: Dosh Result: Destroyed by P-80 Master with Gamma Rifle Performance ------------- Evolutions (7) 3500 Regions Visited (18) 3600 Robots Destroyed (249) 1245 Value Destroyed (11283) 11283 Prototype IDs (39) 780 Alien Tech Used (2) 400 Bonus (318) 318 TOTAL SCORE: 21126 Bonus ------- High Alert Combat Kills 602 Follower Combat Kills 559 Registered with UFD 300 Met Optimus in HQ 500 Met Zhirov 300 Friendly Fire -1943 Cogmind --------- Core Integrity 0/1300 Matter 43/300 Energy 85/150 System Corruption 60% Temperature Cool (-200) Movement Rolling (210) Ox6 Location -3/Testing Parts ------- > --- POWER (3) -------- Micro Antimatter Reactor (fused) > --- PROPULSION (5) --- Biometal Medium Treads High-density Centrium Wheel > --- UTILITY (9) ------ Advanced Cryofiber Web Huge Storage Unit Advanced Sensor Array Advanced Signal Interpreter Advanced Target Analyzer Advanced Target Analyzer System Mapper Mapping Drone Bay (0/3) > --- WEAPON (4) ------- Cooled Phase Cannon Omega Cannon Enhanced Force Lance > --- INVENTORY (25) --- Light Ion Engine Armored Heavy Treads Wheel Compact Wheel Compact Wheel Compact Wheel Compact Wheel Energy Filter Experimental Cloaking Device Experimental EM Disruption Field System Mapper Advanced Component Analysis Suite Dimensional Node Initializer Plasma Rifle Plasma Rifle Plasma Rifle Long-range Proton Cannon Compact HERF Cannon Nova Cannon Improved Matter Neutralizer Heavy Hardcell Cannon Fusion Bomb Launcher CPS Tube (2) Peak State ------------ > --- POWER ------------ Light Antimatter Reactor Light Antimatter Reactor Micro Antimatter Reactor > --- PROPULSION ------- Flexi-carbon Leg Myomer Leg Myomer Exoskeleton > --- UTILITY ---------- Huge Storage Unit Advanced Signal Interpreter Advanced Weapon Cycler Experimental Cloaking Device Centrium Heavy Armor Plating Experimental EM Disruption Field Improved Remote Force Field System Mapper > --- WEAPON ----------- Long-range Proton Cannon Nova Cannon Railgun Enhanced Force Lance > --- INVENTORY -------- Light Ion Engine Armored Heavy Treads Wheel Compact Wheel Compact Wheel Compact Wheel Compact Wheel Advanced Cryofiber Web Advanced Heat Sink Advanced Heat Sink Energy Filter Advanced Component Analysis Suite Mapping Drone Bay Dimensional Node Initializer Plasma Rifle Plasma Rifle Plasma Rifle Dispersion Rifle Compact HERF Cannon Omega Cannon Fusion Bomb Launcher CPS Tube [Rating: 182] Favorites ----------- Power Antimatter Reactor Engine Improved Deuterium Engine Power Core Cooled Fission Core Reactor Antimatter Reactor Propulsion Centrium Wheel Treads Light Treads Leg Myomer Exoskeleton Wheel Centrium Wheel Utility Huge Storage Unit Device Advanced Cooling System Storage Huge Storage Unit Processor Advanced Signal Interpreter Hackware Hacking Suite Protection Layered Heavy Armor Plating Weapon Tesla Rifle Energy Gun Tesla Rifle Energy Cannon Advanced Plasma Cannon Ballistic Gun Assault Rifle Ballistic Cannon Light Cannon Launcher Heavy Missile Launcher Special Weapon RU-N14's Throwing Claymores v3 Impact Weapon Hammer Slashing Weapon Makeshift Axe Piercing Weapon Enhanced Force Lance Build | -11 -10 -10 -7 -7 -5 -5 -5 -5 -4 -4 -4 -4 -4 -4 -4 -3 -3 -3 ------- Run | Yrd Mat Sub Rec Scr Fac Upp Upp Zhi Pro Fac Was Fac Upp Upp War Pro Res Tes Slots Evolved 14 | . . . . . 10 . . . . 2 . . . . . . 2 . Power 2 | . . . . . 1 . . . . 1 . . . . . . . . Propulsion 3 | . . . . . 2 . . . . . . . . . . . 1 . Utility 7 | . . . . . 6 . . . . . . . . . . . 1 . Weapon 2 | . . . . . 1 . . . . 1 . . . . . . . . Parts Attached 189 | 5 8 6 . 7 48 . 1 13 . 5 10 8 4 11 8 3 29 23 Power 27 | 1 . 1 . 5 5 . . 1 . 2 3 2 . . . . 3 4 Engine 10 | 1 . 1 . 4 2 . . . . 1 . . . . . . 1 . Core 5 | . . . . 1 3 . . . . . . 1 . . . . . . Reactor 12 | . . . . . . . . 1 . 1 3 1 . . . . 2 4 Propulsion 42 | 2 . 3 . 1 13 . . 3 . . 1 . . 6 . . 7 6 Treads 12 | 2 . 2 . 1 3 . . . . . 1 . . . . . 2 1 Leg 4 | . . . . . . . . 1 . . . . . . . . . 3 Wheel 26 | . . 1 . . 10 . . 2 . . . . . 6 . . 5 2 Hover . | . . . . . . . . . . . . . . . . . . . Flight . | . . . . . . . . . . . . . . . . . . . Utility 69 | 1 4 . . 1 21 . 1 5 . 1 3 4 3 1 6 1 9 8 Device 40 | . 1 . . 1 11 . 1 3 . 1 2 3 2 1 4 . 5 5 Storage 4 | 1 2 . . . . . . . . . . . . . 1 . . . Processor 5 | . . . . . 2 . . . . . . . . . 1 . . 2 Hackware 5 | . . . . . 2 . . . . . . . . . . 1 1 1 Protection 15 | . 1 . . . 6 . . 2 . . 1 1 1 . . . 3 . Artifact . | . . . . . . . . . . . . . . . . . . . Weapon 51 | 1 4 2 . . 9 . . 4 . 2 3 2 1 4 2 2 10 5 Energy Gun 17 | . . . . . 1 . . 2 . 1 2 1 . 4 . 1 5 . Energy Cannon 12 | . . . . . 5 . . . . 1 . 1 1 . . . 1 3 Ballistic Gun 7 | 1 2 1 . . 1 . . 1 . . . . . . . . 1 . Ballistic Cannon 5 | . 2 . . . . . . . . . 1 . . . . . 1 1 Launcher 2 | . . . . . . . . 1 . . . . . . . . 1 . Special Weapon 5 | . . . . . 1 . . . . . . . . . 2 1 1 . Impact Weapon 1 | . . 1 . . . . . . . . . . . . . . . . Slashing Weapon 1 | . . . . . 1 . . . . . . . . . . . . . Piercing Weapon 1 | . . . . . . . . . . . . . . . . . . 1 Special Melee Weapon . | . . . . . . . . . . . . . . . . . . . Unidentified Prototypes 22 | . . . . 1 2 . . 4 . . 1 . . . 6 . 1 7 Corrupted Parts 2 | . . . . . . . . 1 . . . . . . . . . 1 System Corruption 2 | . . . . . . . . 1 . . . . . . . . . 1 Parts Lost 97 | . . 7 . . 20 . . 12 . . . 8 . . . 1 37 12 Power 16 | . . . . . 4 . . 1 . . . 3 . . . . 4 4 Propulsion 21 | . . 3 . . 4 . . 3 . . . . . . . . 8 3 Utility 34 | . . 1 . . 9 . . 5 . . . 1 . . . . 13 5 Weapon 26 | . . 3 . . 3 . . 3 . . . 4 . . . 1 12 . Highest Loss Streak 12 | . . 5 . . 3 . . 12 . . . 4 . . . 1 8 7 To Critical Strikes . | . . . . . . . . . . . . . . . . . . . Average Backups 18 | . 7 11 10 19 19 19 20 16 12 16 21 21 20 21 21 20 18 20 Power 1 | . 1 1 2 1 1 3 3 3 3 3 4 2 . . 1 1 . 1 Propulsion 2 | . . 1 . . 3 3 3 1 1 1 2 2 5 2 1 1 1 5 Utility 7 | . 2 6 7 9 7 7 7 5 2 3 4 8 10 9 10 10 9 4 Weapon 4 | . 3 2 1 5 4 4 5 3 2 4 6 4 1 3 4 5 4 7 Tool/Special . | . . . . . . . . . . . . . . . . . . . Unused Backups 38 | . 1 . . 3 4 1 1 . . . 3 2 . 4 2 . 2 15 Power 2 | . 1 . . . . . . . . . . . . . 1 . . . Propulsion 8 | . . . . . 3 1 . . . . . . . 1 . . . 3 Utility 11 | . . . . 1 . . 1 . . . 2 1 . . 1 . 2 3 Weapon 15 | . . . . 2 1 . . . . . 1 1 . 3 . . . 7 Tool/Special 2 | . . . . . . . . . . . . . . . . . . 2 Average Slot Usage (%) 88 | . 96 94 85 83 99 100 100 82 81 83 81 83 83 93 93 94 83 71 Engine 6 | . 14 14 14 16 8 . . 1 5 6 2 2 . . . . . . Core 3 | . . . . 1 9 11 11 6 5 5 2 2 5 5 5 5 2 . Reactor 4 | . . . . . . . . 1 . 3 10 9 10 10 10 10 6 6 Treads 8 | . 28 24 14 24 11 . . . . . . . . . . . . . Wheel 9 | . . 2 14 . 9 23 23 17 11 10 9 10 10 19 21 21 17 1 Device 14 | . 1 10 . 4 20 17 17 15 22 21 18 20 13 15 20 15 16 18 Storage 7 | . 14 14 14 12 5 5 5 5 5 5 5 5 5 5 5 5 4 4 Processor 3 | . . . . . 4 5 5 5 5 5 5 5 5 5 5 5 4 8 Hackware 3 | . . . . . 4 11 11 8 5 5 5 5 5 5 5 5 6 3 Protection 3 | . 11 . . . 6 5 5 2 . . 1 . 6 5 . 5 4 1 Energy Gun 6 | . . . . . 1 . . 3 11 10 19 18 5 15 18 20 6 . Energy Cannon 3 | . . . . . 10 11 11 1 4 4 . 1 14 4 1 . 6 3 Ballistic Gun 4 | . 23 6 14 12 1 . . 1 . 4 . . . . . . . 2 Ballistic Cannon 1 | . 2 19 . . . . . . . . . . . . . . . 2 Impact Weapon 2 | . . 1 14 12 . . . . . . . . . . . . . . Peak Build Rating 182 | 5 9 12 10 40 99 84 84 95 101 121 128 128 129 130 133 135 144 182 Average Rating 86 | 3 7 9 10 22 81 83 84 80 100 116 119 123 126 122 128 131 128 154 On Entrance 78 | . 5 9 10 10 40 83 84 84 92 101 119 122 117 128 127 128 132 95 Avg Prop Armor Cover (%) 8 | . . 13 7 . 11 . . . . . . . 2 2 . . 12 13 Naked Turns . | . . . . . . . . . . . . . . . . . . . Heaviest Build 203 | 12 93 93 89 127 186 145 145 144 132 163 169 181 203 203 192 184 190 189 Greatest Support 135 | 40 40 40 20 43 97 52 52 52 40 40 40 40 40 60 60 60 75 135 Greatest Overweight (x) 10 | . 2 4 4 4 9 2 2 8 3 4 4 4 9 9 3 3 10 6 Average Overweight (x) 2 | . . 2 4 2 2 2 2 2 3 3 3 3 7 3 2 2 2 1 Largest Inventory Capacity 25 | 8 25 25 25 25 25 25 25 25 25 25 25 25 25 25 25 25 25 25 Average Capacity 24 | 7 10 25 25 25 25 25 25 25 25 25 25 25 25 25 25 25 25 25 Most Carried 25 | 1 12 14 11 25 25 25 25 25 15 23 25 25 25 25 25 25 25 25 Average Carried 20 | . 7 12 11 20 21 24 25 20 14 18 24 24 22 24 24 24 21 21 Final Capacity 25 | 8 25 25 25 25 25 25 25 25 25 25 25 25 25 25 25 25 25 25 Final Carried 25 | 1 12 11 11 25 25 25 25 14 15 23 25 24 25 25 25 23 13 25 Scrap Suit Usage (%) 12 | . . . . . . . . 37 100 2 26 94 . . . . . . Parts Cannibalized 15 | . . . . . . . . . . 2 . 13 . . . . . . Class Distribution -------------------- 27% | Mutant 17% | Scavenger-Scrapper 11% | Scavenger-Mutant 8% | Skirmisher 7% | Derelict-Tank 4% | Derelict-Mutant 4% | Scavenger-Tank 3% | Derelict-Skirmisher Dominant Class ---------------- Mutant | -10/Materials Mutant | -10/Subcaves Mutant | -7/Recycling Mutant | -7/Scraptown Derelict-Tank | -5/Factory Scavenger-Mutant | -5/Upper Caves Scavenger-Mutant | -5/Upper Caves Scavenger-Mutant | -5/Zhirov Scavenger-Scrapper | -4/Proximity Caves Scavenger-Scrapper | -4/Factory Scavenger-Scrapper | -4/Waste Scavenger-Scrapper | -4/Factory Scavenger-Skirmisher | -4/Upper Caves Skirmisher | -4/Upper Caves Skirmisher | -4/Warlord Skirmisher | -3/Proximity Caves Hacker-Skirmisher | -3/Research Scavenger-Gunner | -3/Testing Resources | -11 -10 -10 -7 -7 -5 -5 -5 -5 -4 -4 -4 -4 -4 -4 -4 -3 -3 -3 ----------- Run | Yrd Mat Sub Rec Scr Fac Upp Upp Zhi Pro Fac Was Fac Upp Upp War Pro Res Tes Matter Collected 4966 | 228 424 246 . 187 866 38 31 181 94 96 206 372 86 261 48 257 640 705 Remotely 56 | . . . . . . . . . . . . 56 . . . . . . Salvage Created 13130 | . 563 128 . . 3260 . 30 265 . 160 1728 1433 . 449 . 604 3347 1163 Parts 487 | . 41 9 . . 140 . 2 2 . 9 17 61 . 17 . 29 114 46 Haulers Intercepted 2 | . 1 . . . 1 . . . . . . . . . . . . . Recyclers Shooed 6 | . 1 . . . 2 . . . . . . 1 . . . . 2 . Parts Field Recycled . | . . . . . . . . . . . . . . . . . . . Retrieved Matter . | . . . . . . . . . . . . . . . . . . . Parts Self-Destructed 45 | . . 7 . . . . 4 2 . . . . . 3 . 29 . . Prevented 27 | . . . . . . . 3 . . . . . . 9 . 15 . . Parts Restored . | . . . . . . . . . . . . . . . . . . . Kills | -11 -10 -10 -7 -7 -5 -5 -5 -5 -4 -4 -4 -4 -4 -4 -4 -3 -3 -3 ------- Run | Yrd Mat Sub Rec Scr Fac Upp Upp Zhi Pro Fac Was Fac Upp Upp War Pro Res Tes Combat Hostiles Destroyed 178 | . 11 9 . . 42 . 1 . . 4 6 29 . 6 . 12 41 17 Melee 6 | . . . . . 1 . . . . . . . . . . . . 5 Guns 56 | . 11 3 . . 6 . . . . 3 2 15 . 4 . 2 9 1 Cannons 54 | . . 6 . . 26 . 1 . . . . . . . . . 11 10 AOE 30 | . . . . . 2 . . . . . . 8 . . . 5 15 . Classes Destroyed 24 | . 7 1 . . 8 . . . . . 2 1 . 2 . 2 . 1 Worker 21 | . 3 . . . 6 . . . . . . 5 . . . . 5 2 Builder 15 | . . . . . 5 . . . . . . 3 . . . . 5 2 Tunneler 1 | . . . . . 1 . . . . . . . . . . . . . Hauler 2 | . 1 . . . 1 . . . . . . . . . . . . . Recycler 13 | . . . . . 3 . . . . . . . . . . . 9 1 Mechanic 2 | . 1 . . . . . . . . . . . . . . . 1 . Operator 3 | . 1 . . . 2 . . . . . . . . . . . . . Drone 2 | . . . . . . . . . . . . . . . . 2 . . Watcher 7 | . 3 . . . 1 . . . . . . 1 . . . . 2 . Swarmer 33 | . 3 4 . . 4 . 1 . . 2 . 5 . 2 . 4 8 . Grunt 57 | . 8 . . . 15 . . . . . . 7 . 1 . 4 11 11 Brawler 1 | . . . . . . . . . . . . . . 1 . . . . Duelist 3 | . . . . . 1 . . . . . . 1 . 1 . . . . Protector 1 | . . . . . . . . . . . . 1 . . . . . . Sentry 10 | . . . . . 4 . . . . . . 2 . 1 . . 3 . Hunter 20 | . . . . . 8 . . . . . . 6 . . . 2 4 . Programmer 38 | . . . . . 10 . . . . 2 . 7 . . . . 15 4 Compactor 6 | . . . . . . . . . . . 6 . . . . . . . Enhanced Grunt 1 | . . . . . . . . 1 . . . . . . . . . . Striker 1 | . . . . . . . . . . . . . . . . . . 1 Protovariant Y 1 | . . . . . . . . . . . . . . . . . . 1 Subdweller 5 | . . 5 . . . . . . . . . . . . . . . . Ranger 1 | . . . . . . . . . . . . . . . . 1 . . Scrapoid 1 | . . . . . 1 . . . . . . . . . . . . . Samaritan 1 | . . . . . . . . . . . . . . 1 . . . . Wasp 2 | . . . . . . . . . . . 2 . . . . . . . Martyr 2 | . . . . . . . . . . . 2 . . . . . . . Best Kill Streak 16 | . 4 3 . . 8 . 1 . . 2 2 11 . 5 . 5 16 5 Combat Bots Only 10 | . 3 3 . . 4 . 1 . . 2 2 6 . 5 . 5 10 4 Max Kills in Single Turn 9 | . 1 1 . . 3 . 1 1 . 1 2 4 . 1 . 5 9 1 Gunslinging 1 | . . . . . . . . . . . . 1 . . . . . . Exploded 5 | . . . . . 2 . . . . . . 4 . . . 5 3 . Melee 1 | . . . . . 1 . . . . . . . . . . . . 1 Uniques/NPCs Destroyed . | . . . . . . . . . . . . . . . . . . . Combat | -11 -10 -10 -7 -7 -5 -5 -5 -5 -4 -4 -4 -4 -4 -4 -4 -3 -3 -3 -------- Run | Yrd Mat Sub Rec Scr Fac Upp Upp Zhi Pro Fac Was Fac Upp Upp War Pro Res Tes Hostile Shots Fired 1622 | . 40 89 . . 308 . 1 106 . 18 1 267 . 25 . 61 476 230 Missed 436 | . 7 20 . . 76 . . 16 . 3 1 99 . 5 . 21 117 71 Hits 1186 | . 33 69 . . 232 . 1 90 . 15 . 168 . 20 . 40 359 159 Melee 9 | . . . . . 1 . . . . . . 2 . 2 . . . 4 Projectile 1177 | . 33 69 . . 231 . 1 90 . 15 . 166 . 18 . 40 359 155 Critical Strikes 74 | . . . . . 19 . . . . 1 . 10 . . . 4 25 15 Part Disruptions 10 | . . . . . 2 . . 5 . . . . . . . . 2 1 Damage Taken 22144 | . 362 881 . . 3855 . 14 1416 . 153 . 2426 . 354 . 610 8202 3871 Core 2389 | . 94 145 . . 226 . . 345 . 9 . 323 . 47 . . 698 502 Absorbed by Shields 2811 | . . 177 . . 790 . . 55 . 106 . 1008 . 155 . 151 288 81 Redirected to Shielding 33 | . 33 . . . . . . . . . . . . . . . . . Regen/Repaired (Parts) 915 | . . . . . 121 . . . . 20 430 142 . . 202 . . . Core Remaining (%) 53 | 100 . . . 4 . . . . 42 . . . . . . 67 . . Volleys Fired 784 | . 63 37 . . 184 . 8 6 9 14 51 102 2 14 . 17 231 46 Largest 4 | . 2 2 . . 3 . 2 3 3 4 4 4 2 4 . 4 4 3 Hottest 376 | . 40 60 . . 220 . 146 232 232 320 376 376 196 260 . 260 260 229 Shots Fired 1520 | . 125 74 . . 312 . 12 14 18 29 182 270 3 39 . 63 301 78 Gun 978 | . 125 18 . . 99 . . 9 17 20 182 265 . 37 . 62 132 12 Cannon 519 | . . 56 . . 211 . 12 4 1 9 . 1 3 2 . . 156 64 Launcher 11 | . . . . . . . . 1 . . . 4 . . . . 4 2 Special 12 | . . . . . 2 . . . . . . . . . . 1 9 . Kinetic 317 | . 125 74 . . 58 . . 3 1 5 . . . . . . 15 36 Thermal 893 | . . . . . 182 . 8 8 17 24 182 266 2 2 . . 175 27 Explosive 21 | . . . . . . . . 1 . . . 4 . . . 1 13 2 Electromagnetic 287 | . . . . . 70 . 4 2 . . . . 1 37 . 62 98 13 Robot Hit Streak 20 | . 13 17 . . 11 . 1 3 . 6 14 20 . 17 . 4 14 16 Robot Miss Streak 6 | . 5 3 . . 6 . . 3 . 4 3 5 . 1 . 6 6 3 Penetration Max 1 | . . . . . . . . . . . . . . . . . 1 . Secondary Targets 3 | . . . . . . . . . . . 1 2 . . . . . . Max Gunslinging Chain 1 | . . . . . . . . . . . 1 1 . . . . . . Capacitor 102 | . . . . . . . . . . . . . . . . . 102 . Shots Hit Robots 952 | . 81 56 . . 226 . 1 14 . 12 127 126 . 26 . 32 172 79 Core Hits 412 | . 35 14 . . 107 . 1 4 . 5 21 69 . 14 . 17 95 30 Critical Kills 8 | . 1 . . . 1 . . . . . 1 2 . . . . 3 . Critical Parts Destroyed 8 | . . . . . . . . . . . 1 7 . . . . . . Critical Strikes 61 | . 1 1 . . 4 . . 1 . 1 14 24 . 2 . 1 5 7 Burn 25 | . . . . . . . . 1 . 1 8 15 . . . . . . Meltdown 4 | . . . . . 1 . . . . . . . . . . . 3 . Destroy 16 | . 1 . . . . . . . . . 6 9 . . . . . . Blast 5 | . . 1 . . . . . . . . . . . . . . . 4 Corrupt 7 | . . . . . 2 . . . . . . . . 2 . 1 2 . Sever 1 | . . . . . 1 . . . . . . . . . . . . . Impale 3 | . . . . . . . . . . . . . . . . . . 3 Melee Attacks 125 | . . 22 1 . 42 . . 7 . . . . . . . . . 53 Impact 23 | . . 22 1 . . . . . . . . . . . . . . . Slashing 49 | . . . . . 42 . . 7 . . . . . . . . . . Piercing 53 | . . . . . . . . . . . . . . . . . . 53 Sneak Attacks 18 | . . . . . 13 . . . . . . . . . . . . 5 Combat Hostiles . | . . . . . . . . . . . . . . . . . . . Follow-up Attacks . | . . . . . . . . . . . . . . . . . . . Damage Inflicted 39227 | . 1045 952 . . 7688 . 33 745 . 394 4119 6072 . 669 . 1569 10761 5180 Guns 15422 | . 1027 131 . . 1778 . . 168 . 328 4119 3684 . 570 . 846 2586 185 Cannons 11600 | . . 821 . . 4046 . 33 33 . 66 . . . . . . 3315 3286 Explosions 8040 | . . . . . 331 . . . . . . 2371 . 99 . 673 4404 162 Melee 3605 | . . . . . 1514 . . 544 . . . . . . . . . 1547 Ramming 70 | . 18 . . . 19 . . . . . . 17 . . . . 16 . Kinetic 5721 | . 1027 952 . . 786 . . 26 . 99 . . . . . . 308 2523 Thermal 16575 | . . . . . 3487 . . 142 . 295 4119 3993 . 99 . . 3788 652 Explosive 7301 | . . . . . . . . . . . . 2062 . . . 673 4404 162 Electromagnetic 5465 | . . . . . 1882 . 33 33 . . . . . 570 . 846 1805 296 Impact . | . . . . . . . . . . . . . . . . . . . Slashing 2548 | . . . . . 1514 . . 544 . . . . . . . 50 440 . Piercing 1547 | . . . . . . . . . . . . . . . . . . 1547 Highest Corruption 60 | . . . . . 14 14 14 21 21 1 1 9 9 9 . . 45 60 Average Corruption 17 | . . . . . 9 14 14 17 21 1 1 4 9 7 . . 34 50 Corruption Purged 15 | . . . . . 5 . . . . . . 1 . 9 . . . . Corruption Blocked . | . . . . . . . . . . . . . . . . . . . Effects 331 | . . . . . 74 10 23 17 26 . 6 9 20 8 . . 61 77 Message Errors 73 | . . . . . 20 3 6 2 5 . 2 3 3 1 . . 11 17 Matter Fused 61 | . . . . . 16 6 2 2 7 . 1 1 4 3 . . 7 12 Heat Flow Errors 33 | . . . . . 7 . 6 3 4 . . . 1 . . . 2 10 Energy Discharges 44 | . . . . . 6 . 3 3 5 . 1 3 5 1 . . 4 13 Parts Rejected 7 | . . . . . 1 . . . . . . . . . . . 3 3 Parts Fused 4 | . . . . . 1 . . 1 . . . . . . . . 1 1 Data Loss (minor) 38 | . . . . . 7 1 5 4 2 . . 1 3 2 . . 6 7 Data Loss (major) 20 | . . . . . 6 . 1 . 1 . . . 2 1 . . 3 6 Misfires 9 | . . . . . 3 . . 2 1 . 1 . . . . . 2 . Alerts 6 | . . . . . 2 . . . . . . . 2 . . . . 2 Misdirections 5 | . . . . . . . . . . . . . . . . . 4 1 Weapon Failures 31 | . . . . . 5 . . . 1 . 1 1 . . . . 18 5 Overload Shots . | . . . . . . . . . . . . . . . . . . . Overflow Damage 1850 | . . . . . 482 . . 278 . . . 123 . . . . 507 460 Projectiles 618 | . . . . . 126 . . . . . . . . . . . 267 225 Explosions 411 | . . . . . 48 . . . . . . 123 . . . . 240 . Melee 821 | . . . . . 308 . . 278 . . . . . . . . . 235 Knockbacks 10 | . . 4 . . 1 . . . . . . . . . . . 2 3 Impact 1 | . . . . . 1 . . . . . . . . . . . . . Kinetic 8 | . . 4 . . . . . . . . . . . . . . 2 2 Secondary 1 | . . . . . . . . . . . . . . . . . . 1 Self-Inflicted Damage 555 | . . . . . . . . 40 . . . 300 . 51 . . 164 . Shots 10 | . . . . . . . . 1 . . . 5 . 1 . . 3 . Rammed 12 | . 6 . . . 3 . . . . . . 1 . . . . 2 . Targets Rammed 12 | . 6 . . . 3 . . . . . . 1 . . . . 2 . Kicked . | . . . . . . . . . . . . . . . . . . . Crushed . | . . . . . . . . . . . . . . . . . . . Highest Temperature 591 | . 2 . . 36 405 . 195 296 200 330 463 591 225 96 . 470 391 430 Average Temperature 135 | . 2 . . 18 133 . 74 123 71 117 213 130 86 37 . 183 117 181 Received Heat Transfer 2602 | . 162 70 . . 748 . . 92 . 4 . 122 . 24 . 151 626 603 Effects 22 | . . . . . 2 . . 1 . . 3 5 . . . 5 2 4 Shutdowns 9 | . . . . . . . . . . . 2 4 . . . 3 . . Energy Bleed 3 | . . . . . 2 . . . . . . . . . . 1 . . Interference 6 | . . . . . . . . 1 . . . 1 . . . 1 1 2 Damage (minor) 3 | . . . . . . . . . . . . . . . . . 1 2 Damage (major) 1 | . . . . . . . . . . . 1 . . . . . . . Siege Activations . | . . . . . . . . . . . . . . . . . . . Martial Activations . | . . . . . . . . . . . . . . . . . . . Shielding Activations . | . . . . . . . . . . . . . . . . . . . Robots Disrupted 1 | . . . . . . . . . . . . . . . . . . 1 Combat Hostiles 1 | . . . . . . . . . . . . . . . . . . 1 Robots Corrupted 20 | . . . . . 6 . . . . . . . . 2 . 5 5 2 Combat Hostiles 19 | . . . . . 6 . . . . . . . . 2 . 5 5 1 Parts Fried 50 | . . . . . 16 . . . . . . . . 6 . 11 13 4 Impact Corruptions 2 | . . . . . . . . . . . . . . . . . . 2 Robots Melted 16 | . . . . . 1 . . . . 1 5 6 . . . . 3 . Combat Hostiles 13 | . . . . . 1 . . . . 1 4 6 . . . . 1 . Parts Melted 67 | . . . . . 17 . . . . 3 13 16 . . . . 18 . Heat Transferred 25612 | . . . . . 5270 . . 350 . 511 7418 7281 . 50 . . 4140 592 Parts Sabotaged . | . . . . . . . . . . . . . . . . . . . Parts Stolen . | . . . . . . . . . . . . . . . . . . . Parts Stripped . | . . . . . . . . . . . . . . . . . . . Power Chain Reactions 1 | . . . . . . . . . . . . . . 1 . . . . Alert | -11 -10 -10 -7 -7 -5 -5 -5 -5 -4 -4 -4 -4 -4 -4 -4 -3 -3 -3 ------- Run | Yrd Mat Sub Rec Scr Fac Upp Upp Zhi Pro Fac Was Fac Upp Upp War Pro Res Tes Maximum Alert Level 3 | . . . . . 3 . . . . . . 3 . . . . 2 1 Low Security (%) 60 | 100 100 . 100 . 46 . . . . 100 100 45 . . . . 71 7 Level 1 24 | . . . . . 25 . . . . . . 24 . . . . 14 92 Level 2 12 | . . . . . 21 . . . . . . 21 . . . . 14 . Level 3 3 | . . . . . 6 . . . . . . 8 . . . . . . Level 4 . | . . . . . . . . . . . . . . . . . . . Level 5 . | . . . . . . . . . . . . . . . . . . . High Security . | . . . . . . . . . . . . . . . . . . . Max Security . | . . . . . . . . . . . . . . . . . . . Peak Influence 838 | . 101 . 39 . 748 . . . . 85 26 838 . . . . 562 316 Initial 327 | . . . 18 . . . . . . . 26 . . . . . 327 292 Average 185 | . 30 . 11 . 280 . . . . 6 1 286 . . . . 171 241 Influence Increases 7185 | . 343 170 31 . 1896 . 20 10 . 128 12 1649 . 120 . 270 1849 687 Destroy 0b10 Robot/C 3580 | . 220 80 . . 1000 . 20 . . 80 . 700 . 120 . 200 820 340 Destroy 0b10 Robot/NC 380 | . 45 . . . 120 . . 10 . . . 60 . . . 10 110 25 Destroy Leader 664 | . 58 . . . 238 . . . . 10 . 144 . . . 30 144 40 Allied During Kill 214 | . . . . . 94 . . . . . . 120 . . . . . . Successful Hack 97 | . 18 . . . 1 . . . . 5 . 39 . . . . 10 24 Select Force Hacks 30 | . . . 30 . . . . . . . . . . . . . . . Disable Machine 615 | . . . . . 225 . . . . . . 255 . . . . 45 90 Destroy Structure 765 | . 2 . 1 . 158 . . . . 18 12 226 . . . . 270 78 Advance Influence 300 | . . . . . . . . . . . . . . . . . 300 . Lose Combat Pursuer 540 | . . 90 . . 60 . . . . 15 . 105 . . . 30 150 90 Influence Decreases 6992 | . 343 131 70 . 1148 438 330 10 . 51 89 823 632 292 22 228 1370 1015 Entered New Map 1019 | . . . 21 . . 278 59 . . . 51 . 306 38 22 . 15 229 Time Decay 3857 | . 343 81 49 . 578 140 271 10 . 51 38 541 326 254 . 218 471 486 Search Patrol Dispatched 100 | . . . . . . . . . . . . . . . . . 100 . Lost Part 822 | . . 50 . . 200 . . . . . . 80 . . . 10 362 120 Lost Ally 322 | . . . . . 70 20 . . . . . 202 . . . . . 30 Purge Threat 872 | . . . . . 300 . . . . . . . . . . . 422 150 Squads Dispatched 64 | . 4 . . . 23 . . . . 4 . 16 . . . . 13 4 Investigation 24 | . 2 . . . 7 . . . . 3 . 6 . . . . 6 . Extermination 19 | . . . . . 6 . . . . 1 . 4 . . . . 5 3 Reinforcement 12 | . 2 . . . 3 . . . . . . 4 . . . . 2 1 Assault 2 | . . . . . . . . . . . . 2 . . . . . . Garrison 7 | . . . . . 7 . . . . . . . . . . . . . Intercept . | . . . . . . . . . . . . . . . . . . . Searches Triggered 1 | . . . . . . . . . . . . . . . . . 1 . Construction Impeded 2 | . . . . . 1 . . . . . . 1 . . . . . . Haulers Reinforced 1 | . . . . . . . . . . . . . . . . . 1 . Active Scanning Responses . | . . . . . . . . . . . . . . . . . . . Cargo Convoy Interrupts 1 | . . . . . . . . . . . . . . . . . 1 . Stealth | -11 -10 -10 -7 -7 -5 -5 -5 -5 -4 -4 -4 -4 -4 -4 -4 -3 -3 -3 --------- Run | Yrd Mat Sub Rec Scr Fac Upp Upp Zhi Pro Fac Was Fac Upp Upp War Pro Res Tes Distress Signals 20 | . 2 . . . 4 . . . . . . 7 . . . 1 5 1 Communications Jammed 2 | . . . . . . . . . . . . . . . . . 2 . Distress Signals 2 | . . . . . . . . . . . . . . . . . 2 . Times Spotted 303 | . 25 13 . . 70 1 1 3 . 10 6 44 . 6 . 14 79 31 Peak Tracking Total 9 | . 5 3 . . 6 3 . 3 . 5 3 5 . 5 . 5 9 5 Tactical Retreats 29 | . . 4 . . 3 . . . . 1 . 5 . . . 2 9 5 Traps | -11 -10 -10 -7 -7 -5 -5 -5 -5 -4 -4 -4 -4 -4 -4 -4 -3 -3 -3 ------- Run | Yrd Mat Sub Rec Scr Fac Upp Upp Zhi Pro Fac Was Fac Upp Upp War Pro Res Tes Traps Triggered 8 | . . . . . 1 . . . . 1 . 3 . . . . 2 1 Indirectly . | . . . . . . . . . . . . . . . . . . . Trap Hack Attempts . | . . . . . . . . . . . . . . . . . . . Triggered . | . . . . . . . . . . . . . . . . . . . Disarmed . | . . . . . . . . . . . . . . . . . . . Reprogrammed . | . . . . . . . . . . . . . . . . . . . Reused . | . . . . . . . . . . . . . . . . . . . Traps Extracted . | . . . . . . . . . . . . . . . . . . . Installed . | . . . . . . . . . . . . . . . . . . . Triggered . | . . . . . . . . . . . . . . . . . . . Machines | -11 -10 -10 -7 -7 -5 -5 -5 -5 -4 -4 -4 -4 -4 -4 -4 -3 -3 -3 ---------- Run | Yrd Mat Sub Rec Scr Fac Upp Upp Zhi Pro Fac Was Fac Upp Upp War Pro Res Tes Machines Disabled 44 | . . . . . 15 . . 1 1 . . 17 . . 1 . 3 6 Max in Single Turn 5 | . . . . . 3 . . 1 1 . . 5 . . 1 . 1 1 Garrison Access 2 | . . . . . . . . . . 1 . 1 . . . . . . Machines Repaired . | . . . . . . . . . . . . . . . . . . . Machines Dismantled 1 | . . . . . . . . . . . . . . . 1 . . . Machines Sabotaged . | . . . . . . . . . . . . . . . . . . . Overloaded Fab Kills . | . . . . . . . . . . . . . . . . . . . Hacking | -11 -10 -10 -7 -7 -5 -5 -5 -5 -4 -4 -4 -4 -4 -4 -4 -3 -3 -3 --------- Run | Yrd Mat Sub Rec Scr Fac Upp Upp Zhi Pro Fac Was Fac Upp Upp War Pro Res Tes Machines Accessed 66 | . 6 . 1 1 15 . . 4 1 6 . 11 1 1 3 . 12 4 Terminals 27 | . 6 . . . 7 . . . . 2 . 4 . . . . 5 3 Fabricators 1 | . . . . . . . . . . . . 1 . . . . . . Repair Stations 4 | . . . . . 2 . . . . . . 1 . . . . . 1 Recycling Units 17 | . . . 1 . 6 . . . . 3 . 3 . . . . 4 . Scanalyzers 3 | . . . . . . . . . . . . 1 . . . . 2 . Garrison Access 3 | . . . . . . . . . . 1 . 1 . . . . 1 . Total Hacks 139 | . 19 . 1 3 26 . . 17 1 10 . 24 1 1 4 . 25 7 Successful 76 | . 5 . 1 3 11 . . 17 1 5 . 11 1 1 4 . 14 2 Failed 61 | . 13 . . . 15 . . . . 5 . 13 . . . . 10 5 Catastrophic 13 | . 1 . . . 6 . . . . 2 . 1 . . . . 1 2 Database Lockouts 2 | . 1 . . . . . . . . . . . . . . . 1 . Manual 59 | . 14 . 1 . 13 . . . . 8 . 8 . . . . 13 2 Terminals 62 | . 19 . . . 15 . . . . 3 . 7 . . . . 12 6 Fabricators 2 | . . . . . . . . . . . . 2 . . . . . . Repair Stations 12 | . . . . . 4 . . . . . . 7 . . . . . 1 Recycling Units 24 | . . . 1 . 7 . . . . 6 . 4 . . . . 6 . Scanalyzers 8 | . . . . . . . . . . . . 3 . . . . 5 . Garrison Access 4 | . . . . . . . . . . 1 . 1 . . . . 2 . Terminal Hacks 42 | . 5 . . 3 3 . . 17 1 1 . 1 1 1 4 . 4 1 Record 13 | . . . . 3 . . . 5 1 . . . . . 4 . . . Part Schematic 4 | . . . . . . . . 4 . . . . . . . . . . Robot Schematic 1 | . 1 . . . . . . . . . . . . . . . . . Robot Analysis 5 | . 1 . . . . . . 4 . . . . . . . . . . Prototype ID Bank 4 | . . . . . . . . 4 . . . . . . . . . . Open Door 2 | . . . . . . . . . . . . . 1 1 . . . . Branch Access Points 1 | . . . . . . . . . . . . . . . . . 1 . Terminal Index 1 | . . . . . . . . . . 1 . . . . . . . . Alert Level 1 | . . . . . 1 . . . . . . . . . . . . . Unreport Threat 6 | . . . . . 2 . . . . . . . . . . . 3 1 Locate Traps 2 | . 2 . . . . . . . . . . . . . . . . . Hauler Manifests 1 | . 1 . . . . . . . . . . . . . . . . . Registered Components 1 | . . . . . . . . . . . . 1 . . . . . . Fabricator Hacks 1 | . . . . . . . . . . . . 1 . . . . . . Network Status 1 | . . . . . . . . . . . . 1 . . . . . . Repair Station Hacks 4 | . . . . . 1 . . . . . . 3 . . . . . . Scan Component 3 | . . . . . 1 . . . . . . 2 . . . . . . Repair 1 | . . . . . . . . . . . . 1 . . . . . . Recycling Unit Hacks . | . . . . . . . . . . . . . . . . . . . Scanalyzer 4 | . . . . . . . . . . . . 1 . . . . 3 . Insert Component 3 | . . . . . . . . . . . . 1 . . . . 2 . Retrieve Study 1 | . . . . . . . . . . . . . . . . . 1 . Garrison Access Hacks 2 | . . . . . . . . . . 1 . 1 . . . . . . Seal Access 2 | . . . . . . . . . . 1 . 1 . . . . . . Unauthorized Hacks 23 | . . . 1 . 7 . . . . 3 . 4 . . . . 7 1 Terminals 6 | . . . . . . . . . . 1 . 1 . . . . 3 1 Track 2 | . . . . . . . . . . . . . . . . . 2 . Botnet 4 | . . . . . . . . . . 1 . 1 . . . . 1 1 Fabricators . | . . . . . . . . . . . . . . . . . . . Repair Stations 1 | . . . . . 1 . . . . . . . . . . . . . Patch 1 | . . . . . 1 . . . . . . . . . . . . . Recycling Units 16 | . . . 1 . 6 . . . . 2 . 3 . . . . 4 . Tunnel 1 | . . . 1 . . . . . . . . . . . . . . . Fedlink 14 | . . . . . 5 . . . . 2 . 3 . . . . 4 . Scrapoids 1 | . . . . . 1 . . . . . . . . . . . . . Scanalyzers . | . . . . . . . . . . . . . . . . . . . Garrison Access . | . . . . . . . . . . . . . . . . . . . Data Cores Recovered . | . . . . . . . . . . . . . . . . . . . Used . | . . . . . . . . . . . . . . . . . . . Hacking Detections 38 | . 5 . . . 8 . . . . 4 . 8 . . . . 9 4 Full Trace Events 7 | . 2 . . . . . . . . 1 . 3 . . . . 1 . Feedback Events . | . . . . . . . . . . . . . . . . . . . Feedback Blocked . | . . . . . . . . . . . . . . . . . . . Robot Schematics Acquired 1 | . 1 . . . . . . . . . . . . . . . . . Robots Built . | . . . . . . . . . . . . . . . . . . . Authchips . | . . . . . . . . . . . . . . . . . . . Time . | . . . . . . . . . . . . . . . . . . . Total Robot Build Rating . | . . . . . . . . . . . . . . . . . . . Part Schematics Acquired 4 | . . . . . . . . 4 . . . . . . . . . . Parts Built . | . . . . . . . . . . . . . . . . . . . Authchips . | . . . . . . . . . . . . . . . . . . . Time . | . . . . . . . . . . . . . . . . . . . Total Part Build Rating . | . . . . . . . . . . . . . . . . . . . Part Studies Acquired 1 | . . . . . . . . . . . . . . . . . 1 . Parts Repaired 1 | . . . . . . . . . . . . 1 . . . . . . Time 136 | . . . . . . . . . . . . 136 . . . . . . Parts Recycled . | . . . . . . . . . . . . . . . . . . . Recycled Matter . | . . . . . . . . . . . . . . . . . . . Retrieved Matter . | . . . . . . . . . . . . . . . . . . . Retrieved Components . | . . . . . . . . . . . . . . . . . . . Parts Scanalyzed 1 | . . . . . . . . . . . . 1 . . . . . . Part Schematics Acquired . | . . . . . . . . . . . . . . . . . . . Parts Damaged . | . . . . . . . . . . . . . . . . . . . Bothacking | -11 -10 -10 -7 -7 -5 -5 -5 -5 -4 -4 -4 -4 -4 -4 -4 -3 -3 -3 ------------ Run | Yrd Mat Sub Rec Scr Fac Upp Upp Zhi Pro Fac Was Fac Upp Upp War Pro Res Tes Used RIF Installer . | . . . . . . . . . . . . . . . . . . . Robots Hacked . | . . . . . . . . . . . . . . . . . . . Non-combat . | . . . . . . . . . . . . . . . . . . . Combat . | . . . . . . . . . . . . . . . . . . . Robot Hacks Applied . | . . . . . . . . . . . . . . . . . . . Relay Couplers Released . | . . . . . . . . . . . . . . . . . . . Fabnet Peak Effective % . | . . . . . . . . . . . . . . . . . . . Robots Rewired 1 | . . . . . 1 . . . . . . . . . . . . . Allies Hacked 7 | . . . . . 1 . . . . . . 6 . . . . . . Hacks Repelled . | . . . . . . . . . . . . . . . . . . . Allies | -11 -10 -10 -7 -7 -5 -5 -5 -5 -4 -4 -4 -4 -4 -4 -4 -3 -3 -3 -------- Run | Yrd Mat Sub Rec Scr Fac Upp Upp Zhi Pro Fac Was Fac Upp Upp War Pro Res Tes Total Allies 26 | . . . . . 6 . . . . . 20 . . . . . . . Largest Group 20 | . . . . . 5 1 . . . . 20 16 . . . . . . Highest-Rated Group 772 | . . . . . 235 47 . . . . 772 622 . . . . . . Highest-Rated Ally 88 | . . . . . 47 47 . . . . 88 88 . . . . . . Initial UFD Resources 98 | . . . . . 37 54 54 54 57 57 71 71 77 77 77 80 80 98 Total Orders 34 | . . . . . 5 . 3 . 5 3 . 6 3 2 1 3 1 2 STAY 1 | . . . . . . . 1 . . . . . . . . . . . FOLLOW 1 | . . . . . . . 1 . . . . . . . . . . . EXPLORE 4 | . . . . . 4 . . . . . . . . . . . . . RETURN 28 | . . . . . 1 . 1 . 5 3 . 6 3 2 1 3 1 2 Ally Attacks 183 | . . . . . 78 1 . . . . . 104 . . . . . . Total Damage 4528 | . . . . . 1805 . . . . . . 2723 . . . . . . Kills 23 | . . . . . 14 . . . . . . 9 . . . . . . Allies Corrupted 3 | . . . . . . . . . . . . 3 . . . . . . Allies Melted 1 | . . . . . . . . . . . 1 . . . . . . . Intel | -11 -10 -10 -7 -7 -5 -5 -5 -5 -4 -4 -4 -4 -4 -4 -4 -3 -3 -3 ------- Run | Yrd Mat Sub Rec Scr Fac Upp Upp Zhi Pro Fac Was Fac Upp Upp War Pro Res Tes Active Infowar (turns) 12889 | . . . . . 3013 287 680 347 538 387 33 1252 739 1132 451 1360 1823 847 Sensors 10326 | . . . . . 1162 287 680 347 538 387 19 1188 739 1132 437 1338 1502 570 Machine Analysis 2203 | . . . . . 2203 . . . . . . . . . . . . . Cloaking 3106 | . . . . . . . . . . . 14 378 . . 14 757 1666 277 Jamming 307 | . . . . . . . . . . . . . 2 . 6 115 184 . Robot Analysis Total 5 | . 1 . . . . . . 4 . . . . . . . . . . Derelict Logs Recovered 5 | . . . . . . . 2 . 1 . . . 1 1 . . . . Drone Launches 82 | . . . . . 4 . 1 . 15 9 . 18 9 6 3 9 3 5 Drone Recoveries 77 | . . . . . 2 . 1 . 15 9 . 18 9 6 3 9 3 2 Exploration | -11 -10 -10 -7 -7 -5 -5 -5 -5 -4 -4 -4 -4 -4 -4 -4 -3 -3 -3 ------------- Run | Yrd Mat Sub Rec Scr Fac Upp Upp Zhi Pro Fac Was Fac Upp Upp War Pro Res Tes Turns Passed 21446 | 81 1357 912 193 3611 3043 287 680 382 538 462 919 1842 739 1132 597 1415 1977 1279 Spaces Moved 10876 | 48 637 245 55 1087 1368 222 475 279 491 374 657 1167 366 659 414 921 917 494 Core 3 | 3 . . . . . . . . . . . . . . . . . . Treads 2463 | 45 637 192 34 1087 466 . . . . . . . . . . . 2 . Legs 416 | . . . . . . . . 1 . . . . . . . . . 415 Wheels 7994 | . . 53 21 . 902 222 475 278 491 374 657 1167 366 659 414 921 915 79 Hover . | . . . . . . . . . . . . . . . . . . . Flight . | . . . . . . . . . . . . . . . . . . . Fastest Speed 50 | 50 160 150 150 320 120 120 120 100 100 100 90 100 110 110 126 126 118 138 Average Speed 156 | 153 171 293 354 321 164 120 120 112 100 101 101 107 143 140 126 130 132 175 Slowest Speed 480 | 160 320 480 480 480 236 120 120 310 100 110 110 110 160 160 144 144 280 210 Overloaded Moves . | . . . . . . . . . . . . . . . . . . . Propulsion Burnouts . | . . . . . . . . . . . . . . . . . . . Robots Hopped . | . . . . . . . . . . . . . . . . . . . Potential Cave-ins 18 | . . 6 . . 2 . . . . . . 6 . . . . 2 2 Cave-ins Triggered 1 | . . . . . 1 . . . . . . . . . . . . . Teleports 1 | . . . . . . . . . . . . . . . . . 1 . Exploration Rate (%) 53 | 3 91 24 13 80 39 44 59 81 67 10 96 33 51 75 64 85 29 63 Regions Visited 18 Branch Regions 12 Pre-discovered Areas 9 | . . . 1 . 1 . 1 3 . . . . 1 1 1 . . . Known Exits Taken 11 | . . . . . 1 1 1 1 1 . . 1 1 1 1 1 1 . Unknown Exits Taken 5 | 1 1 1 1 1 . . . . . . . . . . . . . . Scrap Searched 16 | . . . . 4 . 2 3 . 2 . . . 1 3 . 1 . . Spaces Dug 96 | . . 10 1 . 15 . 5 . 4 5 . 21 2 1 . . 24 8 Terrain Destroyed 565 | . . 10 1 . 63 . 6 21 10 9 7 179 2 2 . 10 162 83 Melee 21 | . . 10 1 . 4 . . . . . . . . . . . . 6 Projectile 181 | . . . . . 34 . 6 7 10 9 7 37 2 2 . . 51 16 AOE 363 | . . . . . 25 . . 14 . . . 142 . . . 10 111 61 Terrain Rammed . | . . . . . . . . . . . . . . . . . . . Walls Destroyed . | . . . . . . . . . . . . . . . . . . . Machines Disabled . | . . . . . . . . . . . . . . . . . . . Actions | -11 -10 -10 -7 -7 -5 -5 -5 -5 -4 -4 -4 -4 -4 -4 -4 -3 -3 -3 --------- Run | Yrd Mat Sub Rec Scr Fac Upp Upp Zhi Pro Fac Was Fac Upp Upp War Pro Res Tes Total 14057 | 53 777 325 55 1207 1862 243 574 336 527 442 847 1609 574 846 479 1083 1499 719 Wait 1607 | . 45 11 . 80 149 20 89 8 21 34 82 271 188 131 20 129 259 70 Move 10858 | 47 636 244 54 1086 1366 221 474 278 490 374 656 1166 365 658 413 920 916 494 Hop . | . . . . . . . . . . . . . . . . . . . Pick Up 172 | 1 15 3 . 23 32 1 1 3 2 11 12 10 4 12 7 . 24 11 Fast Attach 70 | 5 1 1 . 4 5 . . 6 . . 5 2 2 1 5 . 13 20 Attach 110 | . 1 5 . 2 26 . . 11 1 2 2 9 3 7 4 1 29 7 Detach 32 | . . . . 2 1 . . 3 . . 5 3 2 3 4 . 2 7 Swap 149 | . 6 2 . 1 31 . 1 3 4 5 11 25 5 9 7 14 17 8 Drop 103 | . 4 . . 9 18 1 1 8 . 2 22 3 3 11 11 1 6 3 Fire 784 | . 63 37 . . 184 . 8 6 9 14 51 102 2 14 . 17 231 46 Melee 125 | . . 22 1 . 42 . . 7 . . . . . . . . . 53 Ram 2 | . . . . . . . . . . . . 1 . . . . 1 . Kick . | . . . . . . . . . . . . . . . . . . . Crush 10 | . 6 . . . 3 . . . . . . . . . . . 1 . Escape Stasis 20 | . . . . . 1 . . 3 . . . 16 . . . . . . Rewire 6 | . . . . . 4 . . . . . 1 1 . . . . . . Trap . | . . . . . . . . . . . . . . . . . . . Miscellaneous 9 | . . . . . . . . . . . . . . . 8 1 . . Route ------- -11/Scrapyard -10/Materials (discovered 5 exits: [*Mat x3] / [*Min] / [*Sub]) -10/Subcaves -7/Recycling -7/Scraptown (discovered 2 exits: *Fac x2) -5/Factory -5/Upper Caves -5/Upper Caves (discovered 2 exits: *Fac / *Zhi) -5/Zhirov -4/Proximity Caves -4/Factory -4/Waste -4/Factory (discovered 2 exits: *Res / *Upp) -4/Upper Caves -4/Upper Caves (discovered 2 exits: *Res / *War) -4/Warlord -3/Proximity Caves -3/Research (discovered 4 exits: Res / Arm / *Tes x2) -3/Testing History --------- Turn | Location | Event 8 | -11/Scrapyard | Discovered new exit (range 16) 82 | -11/Scrapyard | Entered Materials 135 | -10/Materials | Discovered new exit (range 5) 301 | -10/Materials | Build established: Mutant 326 | -10/Materials | Discovered new exit (range 13) 519 | -10/Materials | Discovered new exit (range 14) 844 | -10/Materials | Central database locked down 887 | -10/Materials | Discovered new exit (range 8) 1416 | -10/Materials | Discovered new exit (range 9) 1439 | -10/Materials | Entered Subcaves 1440 | -10/Subcaves | Approached by a straggling Scientist 1672 | -10/Subcaves | A swath of the cavern ceiling suddenly collapsed 1989 | -10/Subcaves | A Subdweller sparked back to life 1989 | -10/Subcaves | A Subdweller sparked back to life 1989 | -10/Subcaves | A Subdweller sparked back to life 2010 | -10/Subcaves | Core integrity fell below 50% 2032 | -10/Subcaves | Core integrity fell below 20% 2055 | -10/Subcaves | Found Prototype Device 2160 | -10/Subcaves | Lost 5 parts (2n1u2w) 2346 | -10/Subcaves | Discovered new exit (range 3) 2351 | -10/Subcaves | Entered Recycling 2429 | -7/Recycling | Scanned before Scraplab entrance 2496 | -7/Recycling | Entered Scraplab 2535 | -7/Recycling | Discovered new exit (range 2) 2544 | -7/Recycling | Entered Scraptown 3113 | -7/Scraptown | Visited Shadow of the Wyrm 3154 | -7/Scraptown | Visited Fellowship of the Rings 3190 | -7/Scraptown | Visited Cyclists 3222 | -7/Scraptown | Visited Assassins FH 3266 | -7/Scraptown | Visited Red Mages 3289 | -7/Scraptown | Visited SPCMW 4064 | -7/Scraptown | Discovered new exit (range 11) 4494 | -7/Scraptown | Identified Power Bank 4495 | -7/Scraptown | Attached Power Bank, gained temporary slots: Power x3 4501 | -7/Scraptown | Visited UFD Registry 4501 | -7/Scraptown | Registered with UFD as "Powerbrain" 4559 | -7/Scraptown | Visited CPS Storage 4677 | -7/Scraptown | Entered Cyclist Reading Room 4927 | -7/Scraptown | Visited Derelict Rescue Squad 4946 | -7/Scraptown | Found DRS Beacon 5014 | -7/Scraptown | Visited Research Penetration Think Tank 5116 | -7/Scraptown | Visited Scrapoid Research Area 5270 | -7/Scraptown | Visited Scrap Suit Storage 5315 | -7/Scraptown | Visited Botcube Research 5334 | -7/Scraptown | Found Botcube 5389 | -7/Scraptown | Visited DA-N13 Charitable Foundation 5427 | -7/Scraptown | Found DCF Scrap (27 items) 5611 | -7/Scraptown | Visited Chapter 10 5669 | -7/Scraptown | Visited Infowarlord's Domain 5695 | -7/Scraptown | Found Exp. Sensor Array 5788 | -7/Scraptown | Build established: Derelict-Mutant 5995 | -7/Scraptown | Met Optimus 5995 | -7/Scraptown | Accepted into 0bPrime 6148 | -7/Scraptown | Discovered new exit (range 3) 6155 | -7/Scraptown | Entered Factory 6155 | -5/Factory | Evolved 10 slots: Power x1, Propulsion x2, Utility x6, Weapon x1 6328 | -5/Factory | Discovered new exit (range 65) 6453 | -5/Factory | Loaded intel: 8 recycling unit locations 6640 | -5/Factory | Learned location of Protoforge (-2) 6710 | -5/Factory | Build established: Derelict-Tank 7034 | -5/Factory | Garrison activated, responded to threat 7561 | -5/Factory | Lost 3 parts (2p1n) 7613 | -5/Factory | Garrison activated, responded to threat 7660 | -5/Factory | System corruption reached 10% 7662 | -5/Factory | Lost 3 parts (1n1u1w) 7871 | -5/Factory | Crushed by falling debris 8114 | -5/Factory | Build established: Scavenger-Mutant 8497 | -5/Factory | Identified exit to Upper Caves 8584 | -5/Factory | Build established: Scavenger-Tank 8665 | -5/Factory | Scrapoid reinforcements arrived 8681 | -5/Factory | Attached CPS modules to 05F05-D. 8683 | -5/Factory | Attached CPS modules to 05F03-D. 8785 | -5/Factory | Allied Derelicts emerged from ambush trap array 8974 | -5/Factory | Found Scrap Suit 8998 | -5/Factory | Build established: Scavenger-Mutant 9168 | -5/Factory | Garrison activated, responded to threat 9198 | -5/Factory | Entered Upper Caves 9198 | -5/Upper Caves | Accompanied by 1 ally 9467 | -5/Upper Caves | Discovered new exit (range 14) 9482 | -5/Upper Caves | Identified exit to Upper Caves 9485 | -5/Upper Caves | Entered another Upper Caves area 9584 | -5/Upper Caves | Discovered new exit (range 10) 9620 | -5/Upper Caves | Identified exit to Factory 9629 | -5/Upper Caves | Learned Factory trap positions 10080 | -5/Upper Caves | Discovered new exit (range 11) 10097 | -5/Upper Caves | Encountered a Warlord checkpoint 10164 | -5/Upper Caves | Identified exit to Zhirov 10165 | -5/Upper Caves | Entered Zhirov 10165 | -5/Zhirov | Discovered new exit (range 3) 10187 | -5/Zhirov | Met Zhirov 10217 | -5/Zhirov | Learned location of Quarantine (-2) 10217 | -5/Zhirov | Learned location of Testing (-3) 10217 | -5/Zhirov | Learned location of Command (-1) 10223 | -5/Zhirov | Zhirov requested help retrieving the SGEMP Prototype 10242 | -5/Zhirov | Found Alien Artifact 10242 | -5/Zhirov | Identified Integrated Dissipator 10242 | -5/Zhirov | Installed Integrated Dissipator, increased core heat dissipation (+20) 10333 | -5/Zhirov | Found Alien Artifact 10363 | -5/Zhirov | Attacked by Zhirov 10363 | -5/Zhirov | Cloak Generator disabled 10373 | -5/Zhirov | Enhanced Grunts warped into view 10383 | -5/Zhirov | Zhirov warped through subspace 10391 | -5/Zhirov | Zhirov detonated his lab 10392 | -5/Zhirov | Core integrity fell below 50% 10422 | -5/Zhirov | Lost 12 parts (1p3n5u3w) 10422 | -5/Zhirov | Lost 8 allies 10546 | -5/Zhirov | Identified exit to Proximity Caves 10547 | -5/Zhirov | Entered Proximity Caves 10564 | -4/Proximity Caves | Found Alien Artifact 10671 | -4/Proximity Caves | Build established: Scavenger-Scrapper 11036 | -4/Proximity Caves | Discovered exit to Factory (range 8) 11068 | -4/Proximity Caves | Learned 4 Research zone layouts 11085 | -4/Proximity Caves | Entered Factory 11085 | -4/Factory | Evolved 2 slots: Power x1, Weapon x1 11086 | -4/Factory | Loaded intel: 95 trap records 11155 | -4/Factory | Loaded intel: 8 recycling unit locations 11370 | -4/Factory | Discovered new exit (range 8) 11448 | -4/Factory | Identified exit to Upper Caves 11547 | -4/Factory | Sucked down chute 11547 | -4/Factory | Entered Waste 11552 | -4/Waste | Found Prototype Reactor 11583 | -4/Waste | Spotted C-40 Crusher 11589 | -4/Waste | Spotted C-40 Crusher 11594 | -4/Waste | Destroyed C-40 Crusher 11598 | -4/Waste | Spotted C-40 Crusher 11606 | -4/Waste | Destroyed C-40 Crusher 11634 | -4/Waste | Destroyed C-40 Crusher 11649 | -4/Waste | Spotted C-40 Crusher 11655 | -4/Waste | Spotted C-40 Crusher 11662 | -4/Waste | Destroyed C-40 Crusher 11729 | -4/Waste | Destroyed C-40 Crusher 11741 | -4/Waste | Spotted C-40 Crusher 11766 | -4/Waste | Destroyed C-40 Crusher 11773 | -4/Waste | Discovered new exit (range 15) 11781 | -4/Waste | Warlord forces began an assault 12050 | -4/Waste | Found Damper Plating 12052 | -4/Waste | Botcube activated 12064 | -4/Waste | Botcube completed mutation into treaded form, armed with 1 gun, 1 cannon. 12132 | -4/Waste | Identified Singularity Reactor 12403 | -4/Waste | Identified exit to Factory 12466 | -4/Waste | Entered Factory 12466 | -4/Factory | Accompanied by 16 allies 12664 | -4/Factory | Discovered new exit (range 10) 12733 | -4/Factory | Identified exit to Research 12753 | -4/Factory | Lost 7 allies 12820 | -4/Factory | Discovered exit to Upper Caves (range 14) 13004 | -4/Factory | Loaded intel: 8 recycling unit locations 13966 | -4/Factory | First assault squad dispatched 13976 | -4/Factory | Repaired Broken Exp. Sensor Array 14065 | -4/Factory | Found Quantum Capacitor 14236 | -4/Factory | Lost 4 parts (1u3w) 14308 | -4/Factory | Entered Upper Caves 14826 | -4/Upper Caves | Discovered new exit (range 3) 14827 | -4/Upper Caves | Identified exit to Upper Caves 14996 | -4/Upper Caves | Build established: Scavenger-Skirmisher 15047 | -4/Upper Caves | Entered another Upper Caves area 15093 | -4/Upper Caves | Discovered exit to Research (range 6) 15419 | -4/Upper Caves | Build established: Skirmisher 15929 | -4/Upper Caves | Attracted the attention of an 0b10 checkpoint 16008 | -4/Upper Caves | Discovered new exit (range 14) 16024 | -4/Upper Caves | Identified exit to Warlord 16179 | -4/Upper Caves | Entered Warlord 16336 | -4/Warlord | Learned 4 Research zone layouts 16336 | -4/Warlord | Learned 4 Research zone layouts 16337 | -4/Warlord | Learned Armory repair station intel 16415 | -4/Warlord | Found Prototype Reactor 16423 | -4/Warlord | Found Prototype Device 16423 | -4/Warlord | Identified Exp. Cloaking Device 16435 | -4/Warlord | Found Prototype Device 16435 | -4/Warlord | Identified System Purifier 16441 | -4/Warlord | Found Prototype Processor 16441 | -4/Warlord | Identified Exp. Armor Integrity Analyzer 16446 | -4/Warlord | Found Prototype Hackware 16589 | -4/Warlord | Found Prototype Special Weapon 16590 | -4/Warlord | Identified RU-N14's Throwing Claymores v3 16594 | -4/Warlord | Found RU-N14's Throwing Claymores v3 16597 | -4/Warlord | Found RU-N14's Throwing Claymores v3 16748 | -4/Warlord | Discovered new exit (range 14) 16762 | -4/Warlord | Identified exit to Proximity Caves 16776 | -4/Warlord | Entered Proximity Caves 16860 | -3/Proximity Caves | Spotter reported a threat 16860 | -3/Proximity Caves | Spotter reported a threat 17394 | -3/Proximity Caves | Discovered exit to Research (range 8) 17550 | -3/Proximity Caves | Activated DRS Beacon 17635 | -3/Proximity Caves | Attracted the attention of an 0b10 checkpoint 17812 | -3/Proximity Caves | Build established: Derelict-Skirmisher 17912 | -3/Proximity Caves | Lost 3 allies 18191 | -3/Proximity Caves | Entered Research 18191 | -3/Research | Evolved 2 slots: Propulsion x1, Utility x1 18192 | -3/Research | Identified exit to Research 18228 | -3/Research | Identified exit to Armory 18228 | -3/Research | Identified exit to Testing 18433 | -3/Research | Loaded intel: 5 recycling unit locations 18441 | -3/Research | Search patrols dispatched 18561 | -3/Research | Found Fusion Bomb Launcher 18692 | -3/Research | Destroyed 10 combat bots 18695 | -3/Research | Lost 3 parts (1u2w) 18835 | -3/Research | Found Prototype Protection 19036 | -3/Research | Spotted B-86 Titan 19068 | -3/Research | Build established: Hacker-Tank 19164 | -3/Research | Central database locked down 19164 | -3/Research | Identified Centrium Heavy Armor Plating 19164 | -3/Research | Identified Vortex Chain Reactor 19175 | -3/Research | Identified Transdimensional Reconstructor 19175 | -3/Research | Warped through subspace 19431 | -3/Research | System corruption reached 10% 19490 | -3/Research | Lost 5 parts (2n2u1w) 19580 | -3/Research | System corruption reached 30% 19597 | -3/Research | Lost 7 parts (2p2n2u1w) 19669 | -3/Research | Core integrity fell below 50% 19707 | -3/Research | Lost 8 parts (2n3u3w) 19842 | -3/Research | Found Centrium Heavy Armor Plating 19940 | -3/Research | Destroyed 8 combat bots 19944 | -3/Research | Lost 4 parts (2n2u) 20138 | -3/Research | Cargo convoy interrupted 20168 | -3/Research | Entered Testing 20173 | -3/Testing | Identified System Mapper 20187 | -3/Testing | Lost 7 parts (1p2u4w) 20281 | -3/Testing | Found Prototype Leg 20281 | -3/Testing | Identified Myomer Exoskeleton 20474 | -3/Testing | Found Prototype Ballistic Cannon 20476 | -3/Testing | Build established: Hacker-Mutant 20543 | -3/Testing | Found Prototype Device 20543 | -3/Testing | Identified Exp. EM Disruption Field 20679 | -3/Testing | Spotted Striker 20707 | -3/Testing | Spotted PY-QSO5STS2VA 20711 | -3/Testing | Spotted Striker 20764 | -3/Testing | Identified Omega Cannon 20768 | -3/Testing | Core integrity fell below 20% 20774 | -3/Testing | Destroyed Striker 20796 | -3/Testing | Lost 7 parts (4p1n2u) 20805 | -3/Testing | Destroyed PY-QSO5STS2VA 20930 | -3/Testing | Found System Mapper 21128 | -3/Testing | Build established: Scavenger-Gunner 21255 | -3/Testing | Found Prototype Device 21255 | -3/Testing | Identified Exp. Thermal Shield 21447 | -3/Testing | Destroyed by P-80 Master with Gamma Rifle Last Messages --------------- 21346_ JM1%V|TF6&AZC#HTQ6ZPBCNAH7JDP,LF/Z5/&5 21346_ Acquired 19 matter. 21359_ ALERT: Potential suspicious activity detected, Programmers report to Testing Zone 3Q. 21364_ System corrupted: Substantial component data lost. 21376_ Acquired Prototype Wheel. 21376_ Identified Hds. Centrium Wheel. 21382_ 8T| >PXNI&A/TASS4UOFX UCLR2MB4TLFIM 21392_ Mapping Drone released from Mapping Drone Bay. 21397_ System corrupted: Matter fused (-7). 21401_ Mapping Drone destroyed. 21405_ U-05 Engineer builds a Wall. 21407_ Phase Constrictor disabled. 21409_ U-05 Engineer builds a Wall. 21428_ System corrupted: Component data lost. 21430_ Dropped Myomer Exoskeleton. 21431_ Acquired Biometal Medium Treads. 21433_ Flexi-carbon Leg destroyed. 21443_ UF%GJW